Cogmind - Beta 11 @@@ ROGUE MODE // 2022.03.29 @ 21:45:05 Player: Window_Licker Result: Destroyed by P-60 Hacker with Shock Rifle Performance ------------- Evolutions (3) 1500 Regions Visited (6) 1200 Robots Destroyed (25) 125 Value Destroyed (780) 780 Prototype IDs (2) 40 Alien Tech Used (0) 0 Bonus (117) 117 TOTAL SCORE: 3762 Bonus ------- Follower Combat Kills 117 Cogmind --------- Core Integrity 0/700 Matter 295/300 Energy 100/100 System Corruption 16% Temperature Cool (0) Movement Core (50) Location -7/Lower Caves Parts ------- > --- POWER (3) -------- (None) > --- PROPULSION (4) --- (None) > --- UTILITY (2) ------ Targeting Computer Hacking Suite > --- WEAPON (4) ------- Powered Hammer > --- INVENTORY (5) ---- Medium Storage Unit Small Matter Pod (50) Core Analyzer System Shield Peak State ------------ > --- POWER ------------ Cooled Ion Engine Light Nuclear Core Light Nuclear Core > --- PROPULSION ------- Carbon-fiber Leg Carbon-fiber Leg > --- UTILITY ---------- Visual Processing Unit Hacking Suite > --- WEAPON ----------- Advanced EMP Blaster Advanced EMP Blaster > --- INVENTORY -------- Aluminum Leg Small Matter Pod [Rating: 28] Favorites ----------- Power Light Nuclear Core Engine Cooled Ion Engine Power Core Light Nuclear Core Propulsion Wheel Leg Carbon-fiber Leg Wheel Wheel Flight Unit Cesium-ion Thruster Utility Hacking Suite Device Sensor Array Storage Large Storage Unit Processor Visual Processing Unit Hackware Hacking Suite Weapon Advanced EMP Blaster Energy Gun Gatling Laser Ballistic Gun Light Assault Rifle Launcher Advanced EMP Blaster Special Weapon Remote Datajack Impact Weapon Flail Special Melee Weapon Datajack Build | -11 -10 -9 -9 -8 -7 -7 ------- Run | Scr Mat Mat Min Mat Fac Low Slots Evolved 6 | . . 2 . 2 2 . Power 2 | . . . . 2 . . Propulsion 2 | . . . . . 2 . Utility . | . . . . . . . Weapon 2 | . . 2 . . . . Parts Attached 41 | 5 7 11 . 9 2 7 Power 11 | 1 2 1 . 5 1 1 Engine 3 | 1 1 . . 1 . . Core 8 | . 1 1 . 4 1 1 Reactor . | . . . . . . . Propulsion 8 | 2 . 2 . 2 1 1 Treads . | . . . . . . . Leg 4 | . . . . 2 1 1 Wheel 2 | 2 . . . . . . Hover . | . . . . . . . Flight 2 | . . 2 . . . . Utility 7 | . 3 3 . . . 1 Device 1 | . . 1 . . . . Storage 2 | . 2 . . . . . Processor 3 | . 1 1 . . . 1 Hackware 1 | . . 1 . . . . Protection . | . . . . . . . Artifact . | . . . . . . . Weapon 15 | 2 2 5 . 2 . 4 Energy Gun 4 | 2 . . . . . 2 Energy Cannon . | . . . . . . . Ballistic Gun 1 | . 1 . . . . . Ballistic Cannon . | . . . . . . . Launcher 5 | . . 3 . 2 . . Special Weapon 1 | . . . . . . 1 Impact Weapon 3 | . 1 1 . . . 1 Slashing Weapon . | . . . . . . . Piercing Weapon . | . . . . . . . Special Melee Weapon 1 | . . 1 . . . . Unidentified Prototypes 2 | . 1 1 . . . . Corrupted Parts 4 | . . . . 3 1 . System Corruption 36 | . . . . 26 10 . Parts Lost 17 | . 1 . . 5 1 10 Power 6 | . . . . 3 . 3 Propulsion 5 | . . . . 1 . 4 Utility . | . . . . . . . Weapon 6 | . 1 . . 1 1 3 Highest Loss Streak 3 | . 1 . . 2 1 3 To Critical Strikes . | . . . . . . . Average Slot Usage (%) 60 | . 87 77 77 62 68 40 Engine 4 | . 12 9 . 3 7 2 Core 6 | . 1 1 11 9 7 6 Leg 5 | . . . . 4 23 8 Wheel 6 | . 28 17 . . . . Flight 4 | . . 4 22 10 . . Storage 2 | . 6 9 . . . . Processor 7 | . 11 12 11 9 7 4 Hackware 5 | . . . 11 9 7 7 Energy Gun 4 | . 23 . . . . 3 Ballistic Gun 1 | . 2 8 . . . . Launcher 3 | . . 2 . 6 14 2 Special Weapon 1 | . . . . . . 3 Impact Weapon 3 | . . 10 11 4 . . Special Melee Weapon 2 | . . 1 11 5 . . Naked Turns . | . . . . . . . Heaviest Build 43 | 6 31 43 8 30 25 19 Greatest Support 40 | 20 20 20 10 30 40 40 Greatest Overweight (x) 4 | . 1 2 . 4 . 4 Average Overweight (x) . | . . . . . . 1 Largest Inventory Capacity 15 | 5 15 15 5 5 5 5 Average Capacity 6 | 5 7 13 5 5 5 5 Most Carried 13 | 4 9 13 5 5 2 4 Average Carried 3 | 2 5 8 4 3 1 2 Final Capacity 15 | 5 15 5 5 5 5 5 Final Carried 9 | 4 9 4 4 2 2 4 Class Distribution -------------------- 55% | Mutant 22% | Sprinter 22% | Scavenger-Mutant Dominant Class ---------------- Mutant | -10/Materials Mutant | -9/Materials Sprinter | -9/Mines Sprinter | -8/Materials Scavenger-Mutant | -7/Factory Mutant | -7/Lower Caves Resources | -11 -10 -9 -9 -8 -7 -7 ----------- Run | Scr Mat Mat Min Mat Fac Low Matter Collected 732 | 163 116 59 130 135 . 129 Remotely . | . . . . . . . Salvage Created 835 | . 116 59 12 387 . 261 Parts 56 | . 9 4 1 26 . 16 Haulers Intercepted . | . . . . . . . Recyclers Shooed 3 | . 2 . . 1 . . Parts Field Recycled . | . . . . . . . Retrieved Matter . | . . . . . . . Parts Self-Destructed 11 | . . . . . . 11 Prevented 4 | . . . . . . 4 Kills | -11 -10 -9 -9 -8 -7 -7 ------- Run | Scr Mat Mat Min Mat Fac Low Combat Hostiles Destroyed 20 | . 2 1 2 7 . 8 Melee 1 | . . . 1 . . . Guns 3 | . 2 . . . . 1 AOE 13 | . . . . 7 . 6 Classes Destroyed 10 | . 2 2 1 4 . 1 Worker 1 | . . . . 1 . . Builder 2 | . . . . 2 . . Operator 1 | . . 1 . . . . Drone 1 | . . . . 1 . . Watcher 2 | . 2 . . . . . Swarmer 8 | . . . 2 . . 6 Grunt 6 | . 2 . . 3 . 1 Sentry 1 | . . 1 . . . . Hunter 3 | . . . . 3 . . Programmer 1 | . . . . . . 1 Best Kill Streak 9 | . 2 1 2 9 . 4 Combat Bots Only 6 | . 2 1 2 6 . 4 Max Kills in Single Turn 4 | . 1 1 1 4 . 2 Gunslinging . | . . . . . . . Exploded 2 | . . . . 2 . 2 Melee 1 | . . . 1 . . . Uniques/NPCs Destroyed . | . . . . . . . Combat | -11 -10 -9 -9 -8 -7 -7 -------- Run | Scr Mat Mat Min Mat Fac Low Damage Taken 2207 | . 94 135 99 456 39 1384 Core 964 | . 12 14 52 184 10 692 Absorbed by Shields . | . . . . . . . Core Remaining (%) 86 | 100 95 . 83 66 . . Volleys Fired 39 | . 11 2 . 7 . 19 Largest 2 | . 2 1 . 2 . 1 Hottest 80 | . 80 20 . 72 . 80 Shots Fired 57 | . 21 2 . 14 . 20 Gun 33 | . 21 2 . . . 10 Cannon . | . . . . . . . Launcher 24 | . . . . 14 . 10 Special . | . . . . . . . Kinetic 3 | . 1 2 . . . . Thermal 21 | . 11 . . . . 10 Explosive . | . . . . . . . Electromagnetic 33 | . 9 . . 14 . 10 Robot Hit Streak 7 | . 7 4 . 6 . 6 Robot Miss Streak 3 | . 2 . . 2 . 3 Penetration Max . | . . . . . . . Secondary Targets 1 | . 1 . . . . . Max Gunslinging Chain 1 | . 1 . . . . . Shots Hit Robots 53 | . 14 11 7 7 . 14 Core Hits 42 | . 7 1 . 14 . 20 Critical Kills . | . . . . . . . Critical Parts Destroyed 1 | . . 1 . . . . Critical Strikes 1 | . . 1 . . . . Smash 1 | . . 1 . . . . Melee Attacks 23 | . . 10 10 . . 3 Impact 19 | . . 8 8 . . 3 Slashing . | . . . . . . . Piercing . | . . . . . . . Sneak Attacks 1 | . . . 1 . . . Combat Hostiles . | . . . . . . . Follow-up Attacks . | . . . . . . . Damage Inflicted 1988 | . 182 202 171 584 . 849 Guns 423 | . 176 15 . . . 232 Cannons . | . . . . . . . Explosions 1115 | . . . . 584 . 531 Melee 442 | . . 187 171 . . 84 Ramming 8 | . 6 . . . . 2 Kinetic 25 | . 10 15 . . . . Thermal 467 | . 75 . . 19 . 373 Explosive . | . . . . . . . Electromagnetic 1046 | . 91 . . 565 . 390 Impact 442 | . . 187 171 . . 84 Slashing . | . . . . . . . Piercing . | . . . . . . . Highest Corruption 26 | . . 5 5 26 10 15 Average Corruption 11 | . . 5 5 21 10 13 Corruption Purged . | . . . . . . . Corruption Blocked . | . . . . . . . Effects 42 | . . 2 5 4 1 30 Message Errors 17 | . . 1 2 2 1 11 Matter Fused 6 | . . . . . . 6 Heat Flow Errors 2 | . . . 1 . . 1 Energy Discharges 7 | . . . 1 2 . 4 Parts Rejected 1 | . . . . . . 1 Data Loss (minor) 5 | . . 1 1 . . 3 Data Loss (major) 3 | . . . . . . 3 Misfires 1 | . . . . . . 1 Overload Shots . | . . . . . . . Overflow Damage 150 | . . 54 50 . . 46 Projectiles . | . . . . . . . Explosions 45 | . . . . . . 45 Melee 105 | . . 54 50 . . 1 Knockbacks . | . . . . . . . Impact . | . . . . . . . Kinetic . | . . . . . . . Secondary . | . . . . . . . Self-Inflicted Damage 214 | . 3 . . 65 . 146 Shots 12 | . . . . 4 . 8 Rammed 4 | . 2 . . . . 2 Targets Rammed 4 | . 2 . . . . 2 Kicked . | . . . . . . . Crushed . | . . . . . . . Highest Temperature 165 | . 134 4 165 34 . 152 Average Temperature 50 | . 60 3 88 13 . 57 Received Heat Transfer 312 | . 48 81 . 126 12 45 Siege Activations . | . . . . . . . Robots Corrupted . | . . . . . . . Combat Hostiles . | . . . . . . . Parts Fried 10 | . 1 2 1 6 . . Impact Corruptions 7 | . . 2 4 . . 1 Robots Melted 1 | . . . . . . 1 Combat Hostiles 1 | . . . . . . 1 Parts Melted 4 | . . . . . . 4 Heat Transferred 900 | . 175 . . 50 . 675 Parts Sabotaged . | . . . . . . . Parts Stolen . | . . . . . . . Parts Stripped . | . . . . . . . Power Chain Reactions 6 | . . . . 4 . 2 Missiles Intercepted . | . . . . . . . Alert | -11 -10 -9 -9 -8 -7 -7 ------- Run | Scr Mat Mat Min Mat Fac Low Peak Influence 286 | . 69 108 286 261 159 . Initial 111 | . . 28 42 103 111 . Average 92 | . 25 64 168 112 132 . Maximum Alert Level 1 | . . . 1 1 . . Low Security (%) 84 | 100 100 100 65 68 100 . Level 1 15 | . . . 34 31 . . Level 2 . | . . . . . . . Level 3 . | . . . . . . . Level 4 . | . . . . . . . Level 5 . | . . . . . . . High Security . | . . . . . . . Max Security . | . . . . . . . Squads Dispatched 6 | . . 1 1 3 1 . Investigation 2 | . . . . 1 1 . Extermination . | . . . . . . . Reinforcement 3 | . . 1 . 2 . . Assault 1 | . . . 1 . . . Garrison . | . . . . . . . Intercept . | . . . . . . . Searches Triggered . | . . . . . . . Construction Impeded . | . . . . . . . Haulers Reinforced . | . . . . . . . Active Scanning Responses . | . . . . . . . Cargo Convoy Interrupts . | . . . . . . . Stealth | -11 -10 -9 -9 -8 -7 -7 --------- Run | Scr Mat Mat Min Mat Fac Low Distress Signals 1 | . . . . 1 . . Communications Jammed . | . . . . . . . Distress Signals . | . . . . . . . Times Spotted 54 | . 4 2 15 17 2 14 Peak Tracking Total 10 | . 2 1 6 10 2 5 Tactical Retreats 6 | . . . 2 3 . 1 Traps | -11 -10 -9 -9 -8 -7 -7 ------- Run | Scr Mat Mat Min Mat Fac Low Traps Triggered . | . . . . . . . Indirectly . | . . . . . . . Trap Hack Attempts . | . . . . . . . Triggered . | . . . . . . . Disarmed . | . . . . . . . Reprogrammed . | . . . . . . . Reused . | . . . . . . . Traps Extracted . | . . . . . . . Installed . | . . . . . . . Triggered . | . . . . . . . Machines | -11 -10 -9 -9 -8 -7 -7 ---------- Run | Scr Mat Mat Min Mat Fac Low Machines Disabled 2 | . . . . . . 2 Max in Single Turn 1 | . . . . . . 1 Machines Sabotaged . | . . . . . . . Garrisons Compromised . | . . . . . . . Overloaded Fab Kills . | . . . . . . . Hacking | -11 -10 -9 -9 -8 -7 -7 --------- Run | Scr Mat Mat Min Mat Fac Low Machines Accessed 6 | . 1 1 . 2 1 1 Terminals 4 | . 1 . . 2 1 . Fabricators . | . . . . . . . Repair Stations . | . . . . . . . Recycling Units 1 | . . 1 . . . . Scanalyzers . | . . . . . . . Garrison Access . | . . . . . . . Total Hacks 16 | . 3 3 . 6 3 1 Successful 14 | . 3 3 . 4 3 1 Failed 2 | . . . . 2 . . Catastrophic . | . . . . . . . Database Lockouts . | . . . . . . . Manual . | . . . . . . . Terminals 12 | . 3 . . 6 3 . Fabricators . | . . . . . . . Repair Stations . | . . . . . . . Recycling Units 3 | . . 3 . . . . Scanalyzers . | . . . . . . . Garrison Access . | . . . . . . . Terminal Hacks 11 | . 3 . . 4 3 1 Record 6 | . 2 . . 3 1 . Part Schematic 1 | . . . . . 1 . Open Door 1 | . . . . . . 1 Unreport Threat 1 | . . . . 1 . . Zone Layout 2 | . 1 . . . 1 . Fabricator Hacks . | . . . . . . . Repair Station Hacks . | . . . . . . . Recycling Unit Hacks 3 | . . 3 . . . . Process 1 | . . 1 . . . . Report Inventory 1 | . . 1 . . . . Retrieve Matter 1 | . . 1 . . . . Scanalyzer . | . . . . . . . Garrison Access Hacks . | . . . . . . . Unauthorized Hacks . | . . . . . . . Terminals . | . . . . . . . Fabricators . | . . . . . . . Repair Stations . | . . . . . . . Recycling Units . | . . . . . . . Scanalyzers . | . . . . . . . Garrison Access . | . . . . . . . Data Cores Recovered . | . . . . . . . Used . | . . . . . . . Hacking Detections 3 | . . . . 2 1 . Full Trace Events 2 | . . . . 1 1 . Feedback Events . | . . . . . . . Feedback Blocked . | . . . . . . . Robot Schematics Acquired . | . . . . . . . Robots Built . | . . . . . . . Authchips . | . . . . . . . Time . | . . . . . . . Total Robot Build Rating . | . . . . . . . Part Schematics Acquired 1 | . . . . . 1 . Parts Built . | . . . . . . . Authchips . | . . . . . . . Time . | . . . . . . . Total Part Build Rating . | . . . . . . . Parts Repaired . | . . . . . . . Time . | . . . . . . . Parts Recycled . | . . . . . . . Recycled Matter 3 | . . 3 . . . . Retrieved Matter 3 | . . 3 . . . . Retrieved Components . | . . . . . . . Parts Scanalyzed . | . . . . . . . Part Schematics Acquired . | . . . . . . . Parts Damaged . | . . . . . . . Bothacking | -11 -10 -9 -9 -8 -7 -7 ------------ Run | Scr Mat Mat Min Mat Fac Low Used RIF Installer . | . . . . . . . Robots Hacked 2 | . . 1 1 . . . Non-combat 2 | . . 1 1 . . . Combat . | . . . . . . . Robot Hacks Applied 2 | . . 1 1 . . . parse_system 2 | . . 1 1 . . . Relay Couplers Released . | . . . . . . . Fabnet Peak Effective % . | . . . . . . . Robots Rewired . | . . . . . . . Allies Hacked . | . . . . . . . Hacks Repelled . | . . . . . . . Allies | -11 -10 -9 -9 -8 -7 -7 -------- Run | Scr Mat Mat Min Mat Fac Low Total Allies 4 | . . . 3 . . 1 Largest Group 3 | . . . 3 . . 1 Highest-Rated Group 135 | . . . 74 . . 135 Highest-Rated Ally 135 | . . . 31 . . 135 Total Orders . | . . . . . . . Ally Attacks 22 | . . . 22 . . . Total Damage 394 | . . . 394 . . . Kills 5 | . . . 5 . . . Allies Corrupted . | . . . . . . . Allies Melted . | . . . . . . . Intel | -11 -10 -9 -9 -8 -7 -7 ------- Run | Scr Mat Mat Min Mat Fac Low Robot Analysis Total . | . . . . . . . Derelict Logs Recovered . | . . . . . . . Drone Launches . | . . . . . . . Drone Recoveries . | . . . . . . . Exploration | -11 -10 -9 -9 -8 -7 -7 ------------- Run | Scr Mat Mat Min Mat Fac Low Turns Passed 1723 | 38 233 204 203 281 80 684 Spaces Moved 1557 | 35 181 171 278 424 64 404 Core 184 | 4 . . . . . 180 Treads . | . . . . . . . Legs 332 | . . . . 44 64 224 Wheels 326 | 31 181 114 . . . . Hover . | . . . . . . . Flight 715 | . . 57 278 380 . . Fastest Speed 32 | 50 80 32 32 32 120 50 Average Speed 84 | 76 81 74 32 53 120 153 Slowest Speed 355 | 80 95 110 32 355 120 250 Overloaded Moves . | . . . . . . . Propulsion Burnouts . | . . . . . . . Robots Hopped . | . . . . . . . Cave-ins Triggered . | . . . . . . . Exploration Rate (%) 24 | 3 26 18 32 35 3 54 Regions Visited 6 Branch Regions 2 Pre-discovered Areas . | . . . . . . . Known Exits Taken . | . . . . . . . Unknown Exits Taken 6 | 1 1 1 1 1 1 . Scrap Searched 3 | . . . . . . 3 Spaces Dug . | . . . . . . . Terrain Destroyed 16 | . . . . 10 . 6 Melee . | . . . . . . . Projectile . | . . . . . . . AOE 16 | . . . . 10 . 6 Terrain Rammed . | . . . . . . . Walls Destroyed . | . . . . . . . Machines Disabled . | . . . . . . . Actions | -11 -10 -9 -9 -8 -7 -7 --------- Run | Scr Mat Mat Min Mat Fac Low Total 1873 | 44 246 237 378 463 66 439 Wait 159 | . 29 23 89 18 . . Move 1551 | 34 180 170 277 423 63 404 Hop . | . . . . . . . Pick Up 25 | 5 10 3 1 2 1 3 Fast Attach 22 | 4 3 5 . 3 1 6 Attach 12 | 1 2 2 . 5 1 1 Detach 11 | . 2 6 . 2 . 1 Swap 7 | . 2 4 . 1 . . Drop 20 | . 5 12 1 2 . . Fire 39 | . 11 2 . 7 . 19 Melee 23 | . . 10 10 . . 3 Ram 4 | . 2 . . . . 2 Kick . | . . . . . . . Crush . | . . . . . . . Escape Stasis . | . . . . . . . Rewire . | . . . . . . . Trap . | . . . . . . . Miscellaneous . | . . . . . . . Route ------- -11/Scrapyard -10/Materials -9/Materials -9/Mines -8/Materials -7/Factory -7/Lower Caves History --------- Turn | Location | Event 26 | -11/Scrapyard | Discovered new exit (range 15) 39 | -11/Scrapyard | Entered Materials 233 | -10/Materials | Discovered new exit (range 12) 272 | -10/Materials | Entered another Materials area 272 | -9/Materials | Evolved 2 slots: Weapon x2 308 | -9/Materials | Build established: Mutant 462 | -9/Materials | Discovered new exit (range 11) 476 | -9/Materials | Entered Mines 557 | -9/Mines | Met a Derelict testing a Signal Generator 564 | -9/Mines | Found Signal Generator 581 | -9/Mines | Discovered new exit (range 11) 679 | -9/Mines | Entered Materials 679 | -8/Materials | Evolved 2 slots: Power x2 720 | -8/Materials | Build established: Sprinter 893 | -8/Materials | System corruption reached 10% 954 | -8/Materials | Discovered new exit (range 4) 960 | -8/Materials | Entered Factory 960 | -7/Factory | Evolved 2 slots: Propulsion x2 961 | -7/Factory | System corruption reached 10% 1006 | -7/Factory | Discovered new exit (range 17) 1040 | -7/Factory | Entered Lower Caves 1057 | -7/Lower Caves | Encountered a Warlord checkpoint 1197 | -7/Lower Caves | Build established: Scavenger-Mutant 1306 | -7/Lower Caves | Lost 3 parts (2n1w) 1358 | -7/Lower Caves | Lost 3 parts (2p1n) 1562 | -7/Lower Caves | Build established: Mutant 1681 | -7/Lower Caves | Core integrity fell below 50% 1719 | -7/Lower Caves | Core integrity fell below 20% 1724 | -7/Lower Caves | Destroyed by P-60 Hacker with Shock Rifle Last Messages --------------- 01678_ Acquired Targeting Computer. 01682_ Acquired Core Analyzer. 01684_ M-14 Sweeper suffers critical hit (Burn). 01687_ Critical hit (Burn: +37). 01687_ Imp. Heat Sink melted. 01687_ G-47 Trooper destroyed. 01690_ Acquired 5 matter. 01696_ Lgt. Nuclear Core fries itself beyond repair. 01696_ Aluminum Leg fries itself beyond repair. 01698_ Particle Gun fries itself beyond repair. 01701_ System corrupted: Substantial component data lost. 01705_ Gatling Laser destroyed. 01713_ Remote Datajack destroyed. 01714_ Acquired Powered Hammer. 01715_ Mic. Nuclear Core destroyed. 01716_ Destroyed Imp. Heat Sink. 01716_ P-60 Hacker system corrupted by crushing effect. 01717_ S-27 Virus destroyed. A strange signal echoes through the caves. 01723_ QM#01X 7/Z9 QK4VLD =X2YNA3 Map ----- +----------------------------------------------------+ | ?????????????????????????????????????????????????? | | ?????????????????????????????????????????????????? | | ?????????????????????????????????????????????????? | | ?????????????????????????????????????????????????? | | ?????????????????????????????????????????????????? | | ?????????????????????????????????????????????##### | | ???????????????????????????????????????????### ## | | ??????????????????????????????????????????## | | ??????????????????????????????????????????# | | ??????????????????????????????????????????# | | ???????????????????? ?????????????????##### | | ???????????????????? ?????????????????# | | ???????????????????? #????????????#### | | ????????????? ????? ????????????# """" | | ????????????? ????# #???????????# """" | | ???????????? ??#? # ???????????# ## """" | | ????????????? ?# ???????????# ## "" | | ?????????????? # ? # ??????????## ### "" | | ??????????????? ? ??????????# ### """" | | ????????????????? ## ??????????# ### "" | | ??????????????????# ???????######## | | ?????????????????## ######## ## | | ????????????# ## ## #### | | ???????????????? ### ## #? | | ?????????????????????###s p ###?## ### ##? | | ???????????????????????# @## ##????### #?####?# | | ???????????????????????# !######???????# #??????# | | ???????????????????????# ############## #??????# | | ???????????????????????# #??????# | | ???????????????????????#[s= #???#### | | ???????????????????????#s= #########??####???# | | ???????????????????????# #?????????????????# ## | | ??????????????????????# #?????????######## ## | | ?????????????????????# #????????## ## | | ???????????????????? % #???##### ######## | | ??????????????????? ## ##???# ####### | | ?????????????????? ?## ##????## # | | ????????????????? ????# ##?????## ###### | | ???????????????? ##?????##??????# ###?##### | | ???????????????####???????????????# ##?### ### | | ??????????????????????????????????# #?## ## | | ??????????????????????????????????## ##?# ## | | ???????????????????????????????????# #???# | | ???????????????????????????????????# #???## ### | | ???????????????????????????????????# #????## %#?# | | ???????????????????????????????????# #???### %### | | ?????????????????????????????????### #???# # # | | ?????????????????????????????????# #???# % | | ???????????????????????????###???# ####???# # # | | ??????????????????????????## #??# #??????## ### | +----------------------------------------------------+ Best States ------------- Heat Dissipation 34 Energy Generation 32 Energy Capacity 400 Matter Stores 300 Matter Capacity 300 Sight Range 18 Terrain Scan Density 10 Evasion (%) 63 Targeting Accuracy 5 Offensive Hacking 10 Item Schematics ----------------- Flexi-carbon Leg | -7/Factory | Hacked Robot Schematics ------------------ None Fabricated ------------ Nothing Alien Tech Used ----------------- None Achievements -------------- None Challenges ------------ None Game ------ Seed NavigationMicrowarpAirjet Manual? 0 Play Time 01:07:41 Cumulative 13.9 hours Start 2022.03.28 @ 20:13:42 End 2022.03.29 @ 21:45:05 Sessions 3 Manual Loads 0 Difficulty Rogue Special Mode None Game No. 15 Rogue 15 Adventurer 0 Explorer 0 Win Type - Total 0 Types 0/0/0/0/0/0/0/0/0 Lore% 3 Gallery% 12 Achievement% 8 Wizard Run 0 Options --------- ASCII 0 Keyboard 1 Movement Numpad Keybinds 0 Fullscreen 2 Font 24/Proggy Map View 76x50 Tactical HUD 1 Map Filters NONE Filters NONE Steam 1 RUN: 1e56ec29-007c-4ea5-ae7b-689880bcf791